[Event "9th RTU Open 2019"]
[Site "Riga"]
[Date "2019.08.06"]
[Round "3.25"]
[White "Theodorou, Nikolas"]
[Black "Krykun, Yuriy"]
[Result "1-0"]
[ECO "E01"]
[WhiteElo "2543"]
[BlackElo "2342"]
[Annotator "ChessBase"]
[PlyCount "69"]
[EventDate "2019.08.05"]
[EventType "swiss"]
[EventCountry "LAT"]
[SourceTitle "playchess.com"]
[Source "ChessBase"]
[SourceQuality "1"]
[TimeControl "5400+30"]

1. d4 {[%emt 0:01:09]} Nf6 {[%emt 0:00:00]} 2. c4 {[%emt 0:00:09]} e6 {[%emt 0:00:00]} 3. g3 {[%emt 0:00:05]} d5 {[%emt 0:00:00]} 4. Bg2 {[%emt 0:00:03]} Bb4+ {[%emt 0:00:00]} 5. Bd2 {[%emt 0:00:03]} Bd6 {[%emt 0:04:06]} 6. Nf3 {[%emt 0:00:09]} O-O {[%emt 0:00:05]} 7. O-O {[%emt 0:00:11]} Nbd7 {[%emt 0:01:05]} 8. Bc3 {[%emt 0:01:13]} Ne4 {[%emt 0:05:10]} 9. Nbd2 {[%emt 0:04:36]} f5 {[%emt 0:02:03]} 10. Nxe4 {[%emt 0:00:10]} fxe4 {[%emt 0:00:16]} 11. Nd2 {[%emt 0:00:03]} Nf6 {[%emt 0:03:28]} 12. e3 {[%emt 0:00:57]} c6 {[%emt 0:04:17]} 13. f3 {[%emt 0:05:10]} exf3 {[%emt 0:00:35]} 14. Nxf3 {[%emt 0:01:50]} b6 {[%emt 0:06:03]} 15. Nd2 {[%emt 0:06:20]} c5 {[%emt 0:13:40]} 16. cxd5 {[%emt 0:21:37]} Nxd5 {[%emt 0:00:26]} 17. Qh5 {[%emt 0:00:17]} g6 {[%emt 0:10:52]} 18. Qxd5 {[%emt 0:20:56]} Rxf1+ {[%emt 0:10:36]} 19. Rxf1 {[%emt 0:00:12]} exd5 {[%emt 0:00:08]} 20. Bxd5+ {[%emt 0:00:05]} Kg7 {[%emt 0:00:06]} 21. dxc5+ {[%emt 0:03:29]} Be5 {[%emt 0:14:33]} 22. Bxe5+ {[%emt 0:00:10]} Kh6 {[%emt 0:00:03]} 23. e4 {[%emt 0:00:27]} Be6 {[%emt 0:02:49]} 24. Bxe6 {[%emt 0:04:03]} Qe7 {[%emt 0:00:12]} 25. Bc3 {[%emt 0:08:28]} Qxc5+ {[%emt 0:04:06]} 26. Kg2 {[%emt 0:00:38]} Rf8 {[%emt 0:00:10]} 27. Nf3 {[%emt 0:02:38]} b5 {[%emt 0:01:56]} 28. a3 {[%emt 0:01:20]} a5 {[%emt 0:00:14]} 29. Rf2 {[%emt 0:02:11]} b4 {[%emt 0:00:40]} 30. axb4 {[%emt 0:00:04]} axb4 {[%emt 0:00:05]} 31. Bd4 {[%emt 0:00:07]} Qc1 {[%emt 0:01:26]} 32. h4 {[%emt 0:01:53]} Re8 {[%emt 0:01:18]} 33. Ng5 {[%emt 0:01:10]} Kh5 {[%emt 0:01:15]} 34. g4+ {[%emt 0:00:14]} Kxh4 {[%emt 0:00:11]} 35. Nf3# {[%emt 0:00:06]} 1-0

[Event "9th RTU Open 2019"]
[Site "Riga"]
[Date "2019.08.06"]
[Round "3.26"]
[White "Stauskas, Lukas"]
[Black "Handke, Florian"]
[Result "1-0"]
[ECO "D80"]
[WhiteElo "2306"]
[BlackElo "2544"]
[Annotator "ChessBase"]
[PlyCount "105"]
[EventDate "2019.08.05"]
[EventType "swiss"]
[EventCountry "LAT"]
[SourceTitle "playchess.com"]
[Source "ChessBase"]
[SourceQuality "1"]
[TimeControl "5400+30"]

1. d4 {[%emt 0:00:00]} Nf6 {[%emt 0:00:00]} 2. c4 {[%emt 0:00:00]} g6 {[%emt 0:00:00]} 3. Nc3 {[%emt 0:00:00]} d5 {[%emt 0:00:00]} 4. Bg5 {[%emt 0:00:01]} Ne4 {[%emt 0:00:00]} 5. Bh4 {[%emt 0:00:07]} Nxc3 {[%emt 0:00:00]} 6. bxc3 {[%emt 0:00:05]} dxc4 {[%emt 0:00:00]} 7. e3 {[%emt 0:01:02]} Be6 {[%emt 0:00:05]} 8. Qb1 {[%emt 0:00:11]} c5 {[%emt 0:01:41]} 9. Qxb7 {[%emt 0:01:32]} Bd5 {[%emt 0:00:17]} 10. Qb5+ {[%emt 0:01:10]} Qd7 {[%emt 0:00:09]} 11. Rb1 {[%emt 0:11:06]} Qxb5 {[%emt 0:00:29]} 12. Rxb5 {[%emt 0:00:09]} Nd7 {[%emt 0:00:05]} 13. Nf3 {[%emt 0:02:31]} e6 {[%emt 0:00:58]} 14. Be2 {[%emt 0:04:12]} cxd4 {[%emt 0:03:51]} 15. exd4 {[%emt 0:02:05]} Be7 {[%emt 0:03:33]} 16. Bxe7 {[%emt 0:01:43]} Kxe7 {[%emt 0:00:04]} 17. O-O {[%emt 0:01:10]} Rhb8 {[%emt 0:06:54]} 18. Rfb1 {[%emt 0:03:39]} Rb6 {[%emt 0:01:05]} 19. Nd2 {[%emt 0:01:46]} Rab8 {[%emt 0:05:46]} 20. Rxb6 {[%emt 0:15:08]} Rxb6 {[%emt 0:00:36]} 21. Rxb6 {[%emt 0:00:31]} Nxb6 {[%emt 0:00:04]} 22. f3 {[%emt 0:00:10]} f5 {[%emt 0:04:44]} 23. g3 {[%emt 0:02:12]} g5 {[%emt 0:01:33]} 24. Kf2 {[%emt 0:01:12]} f4 {[%emt 0:01:06]} 25. gxf4 {[%emt 0:00:17]} gxf4 {[%emt 0:00:03]} 26. Kg2 {[%emt 0:01:22]} Kf6 {[%emt 0:05:42]} 27. Kh3 {[%emt 0:01:26]} Na4 {[%emt 0:07:38]} 28. Bxc4 {[%emt 0:02:34]} Nxc3 {[%emt 0:05:51]} 29. a3 {[%emt 0:09:34]} Bxc4 {[%emt 0:17:13]} 30. Nxc4 {[%emt 0:00:06]} Kg5 {[%emt 0:00:43]} 31. Nd6 {[%emt 0:02:08]} Kh5 {[%emt 0:19:54]} 32. Ne8 {[%emt 0:01:57]} Kg6 {[%emt 0:05:30]} 33. Kg4 {[%emt 0:01:59]} Ne2 {[%emt 0:00:29]} 34. Nd6 {[%emt 0:06:50]} h5+ {[%emt 0:00:46]} 35. Kh3 {[%emt 0:00:05]} Nxd4 {[%emt 0:00:11]} 36. Kg2 {[%emt 0:00:06]} a5 {[%emt 0:03:36]} 37. Nc4 {[%emt 0:01:10]} Nb3 {[%emt 0:01:32]} 38. Kh3 {[%emt 0:00:26]} a4 {[%emt 0:00:47]} 39. Nb2 {[%emt 0:01:29]} Nc5 {[%emt 0:00:06]} 40. Nd1 {[%emt 0:00:14]} Kg5 {[%emt 0:01:24]} 41. Nc3 {[%emt 0:00:23]} e5 {[%emt 0:00:10]} 42. Kg2 {[%emt 0:00:56]} Kh4 {[%emt 0:00:33]} 43. Ne2 {[%emt 0:00:42]} Kg5 {[%emt 0:00:47]} 44. Nc3 {[%emt 0:00:05]} Kf6 {[%emt 0:00:46]} 45. Kh3 {[%emt 0:00:11]} Kf5 {[%emt 0:00:35]} 46. Kg2 {[%emt 0:00:44]} h4 {[%emt 0:01:01]} 47. Kh3 {[%emt 0:03:49]} e4 {[%emt 0:03:44]} 48. fxe4+ {[%emt 0:00:04]} Nxe4 {[%emt 0:00:03]} 49. Nxa4 {[%emt 0:00:05]} f3 {[%emt 0:00:26]} 50. Nb2 {[%emt 0:00:08]} Nc5 {[%emt 0:01:51]} 51. Kxh4 {[%emt 0:00:24]} Kf4 {[%emt 0:00:18]} 52. Nd1 {[%emt 0:00:17]} Ne4 {[%emt 0:00:46]} 53. a4 {[%emt 0:04:01]} 1-0

[Event "9th RTU Open 2019"]
[Site "Riga"]
[Date "2019.08.06"]
[Round "3.27"]
[White "Thybo, Jesper Sondergaard"]
[Black "Rudolf, Michal"]
[Result "1-0"]
[ECO "A32"]
[WhiteElo "2528"]
[BlackElo "2351"]
[Annotator "ChessBase"]
[PlyCount "113"]
[EventDate "2019.08.05"]
[EventType "swiss"]
[EventCountry "LAT"]
[SourceTitle "playchess.com"]
[Source "ChessBase"]
[SourceQuality "1"]
[TimeControl "5400+30"]

1. d4 {[%emt 0:00:00]} e6 {[%emt 0:00:00]} 2. Nf3 {[%emt 0:01:45]} c5 {[%emt 0:00:00]} 3. c4 {[%emt 0:00:28]} cxd4 {[%emt 0:01:04]} 4. Nxd4 {[%emt 0:00:04]} Nf6 {[%emt 0:01:16]} 5. Nc3 {[%emt 0:04:04]} d5 {[%emt 0:01:28]} 6. Bf4 {[%emt 0:12:04]} a6 {[%emt 0:07:49]} 7. g3 {[%emt 0:04:31]} Nbd7 {[%emt 0:13:41]} 8. Qa4 {[%emt 0:15:37]} dxc4 {[%emt 0:02:44]} 9. Bg2 {[%emt 0:03:44]} Be7 {[%emt 0:06:45]} 10. Nf3 {[%emt 0:15:43]} O-O {[%emt 0:01:26]} 11. Qxc4 {[%emt 0:07:26]} Nb6 {[%emt 0:00:38]} 12. Qb3 {[%emt 0:01:09]} Nbd5 {[%emt 0:01:15]} 13. Rd1 {[%emt 0:02:29]} Qa5 {[%emt 0:06:27]} 14. O-O {[%emt 0:00:23]} Qb4 {[%emt 0:06:37]} 15. Qxb4 {[%emt 0:08:42]} Bxb4 {[%emt 0:01:05]} 16. Be5 {[%emt 0:00:08]} Nxc3 {[%emt 0:08:09]} 17. bxc3 {[%emt 0:00:13]} Bc5 {[%emt 0:01:47]} 18. c4 {[%emt 0:02:45]} b6 {[%emt 0:03:14]} 19. Bd6 {[%emt 0:02:07]} Re8 {[%emt 0:04:48]} 20. Ne5 {[%emt 0:01:17]} Ra7 {[%emt 0:01:04]} 21. Bc6 {[%emt 0:01:19]} Bxd6 {[%emt 0:00:19]} 22. Rxd6 {[%emt 0:00:02]} Rf8 {[%emt 0:00:08]} 23. a4 {[%emt 0:00:53]} Rc7 {[%emt 0:01:26]} 24. Rb1 {[%emt 0:00:31]} Ne8 {[%emt 0:00:26]} 25. Bxe8 {[%emt 0:01:48]} Rxe8 {[%emt 0:00:15]} 26. Rbxb6 {[%emt 0:00:24]} Rc5 {[%emt 0:01:23]} 27. Nc6 {[%emt 0:02:32]} Rxc4 {[%emt 0:00:56]} 28. Ne7+ {[%emt 0:00:08]} Kf8 {[%emt 0:00:20]} 29. Nxc8 {[%emt 0:00:07]} Rexc8 {[%emt 0:00:11]} 30. Rxa6 {[%emt 0:00:17]} Rc1+ {[%emt 0:04:30]} 31. Kg2 {[%emt 0:00:07]} R1c2 {[%emt 0:00:02]} 32. Ra7 {[%emt 0:00:47]} R8c7 {[%emt 0:02:11]} 33. Rxc7 {[%emt 0:00:13]} Rxc7 {[%emt 0:00:04]} 34. Rd2 {[%emt 0:00:07]} Ra7 {[%emt 0:00:06]} 35. Ra2 {[%emt 0:00:07]} Ra5 {[%emt 0:00:09]} 36. f4 {[%emt 0:01:57]} Ke7 {[%emt 0:00:11]} 37. Kf3 {[%emt 0:00:35]} Kd6 {[%emt 0:00:04]} 38. g4 {[%emt 0:01:12]} f5 {[%emt 0:01:06]} 39. e4 {[%emt 0:01:53]} fxg4+ {[%emt 0:01:07]} 40. Kxg4 {[%emt 0:00:10]} Kc5 {[%emt 0:00:08]} 41. e5 {[%emt 0:00:37]} Kc4 {[%emt 0:00:47]} 42. h4 {[%emt 0:01:46]} Kb3 {[%emt 0:00:13]} 43. Ra1 {[%emt 0:00:30]} Kb2 {[%emt 0:01:48]} 44. Rd1 {[%emt 0:00:06]} Rxa4 {[%emt 0:00:05]} 45. Rd7 {[%emt 0:00:13]} Ra1 {[%emt 0:00:12]} 46. Re7 {[%emt 0:02:08]} Rg1+ {[%emt 0:00:21]} 47. Kf3 {[%emt 0:00:37]} Rf1+ {[%emt 0:02:13]} 48. Ke3 {[%emt 0:00:21]} Re1+ {[%emt 0:00:35]} 49. Kf2 {[%emt 0:00:25]} Rh1 {[%emt 0:00:05]} 50. Rxe6 {[%emt 0:00:10]} Rxh4 {[%emt 0:00:08]} 51. Kg3 {[%emt 0:00:11]} Rh1 {[%emt 0:00:31]} 52. Re8 {[%emt 0:00:18]} Rc1 {[%emt 0:00:50]} 53. Rb8+ {[%emt 0:00:55]} Ka3 {[%emt 0:00:08]} 54. e6 {[%emt 0:00:04]} Rc7 {[%emt 0:00:21]} 55. f5 {[%emt 0:00:24]} Ka4 {[%emt 0:03:09]} 56. Kf4 {[%emt 0:00:15]} Ka5 {[%emt 0:00:17]} 57. Ke5 {[%emt 0:00:13]} 1-0

[Event "9th RTU Open 2019"]
[Site "Riga"]
[Date "2019.08.06"]
[Round "3.28"]
[White "Borisovsky, Dmitry"]
[Black "Stany, G.A."]
[Result "1/2-1/2"]
[ECO "B09"]
[WhiteElo "2326"]
[BlackElo "2525"]
[Annotator "ChessBase"]
[PlyCount "108"]
[EventDate "2019.08.05"]
[EventType "swiss"]
[EventCountry "LAT"]
[SourceTitle "playchess.com"]
[Source "ChessBase"]
[SourceQuality "1"]
[TimeControl "5400+30"]

1. e4 {[%emt 0:00:00]} g6 {[%emt 0:00:01]} 2. d4 {[%emt 0:00:00]} Bg7 {[%emt 0:00:05]} 3. Nc3 {[%emt 0:00:20]} d6 {[%emt 0:00:05]} 4. f4 {[%emt 0:00:49]} Nf6 {[%emt 0:01:12]} 5. Nf3 {[%emt 0:00:07]} O-O {[%emt 0:00:54]} 6. Be2 {[%emt 0:08:15]} c5 {[%emt 0:00:32]} 7. dxc5 {[%emt 0:00:07]} Qa5 {[%emt 0:02:15]} 8. Nd2 {[%emt 0:01:00]} Qxc5 {[%emt 0:00:55]} 9. g4 {[%emt 0:02:25]} Nc6 {[%emt 0:15:43]} 10. Nb3 {[%emt 0:25:23]} Qb6 {[%emt 0:02:26]} 11. g5 {[%emt 0:04:29]} Nd7 {[%emt 0:00:20]} 12. Nd5 {[%emt 0:01:01]} Qd8 {[%emt 0:00:05]} 13. O-O {[%emt 0:09:46]} Nc5 {[%emt 0:05:48]} 14. Nxc5 {[%emt 0:03:00]} dxc5 {[%emt 0:00:16]} 15. c3 {[%emt 0:02:00]} b6 {[%emt 0:24:22]} 16. Qe1 {[%emt 0:09:17]} f6 {[%emt 0:03:07]} 17. gxf6 {[%emt 0:01:20]} exf6 {[%emt 0:00:08]} 18. Bc4 {[%emt 0:09:46]} Kh8 {[%emt 0:01:27]} 19. Ne3 {[%emt 0:01:32]} Ne7 {[%emt 0:07:51]} 20. Qh4 {[%emt 0:11:43]} Bb7 {[%emt 0:00:44]} 21. f5 {[%emt 0:00:55]} gxf5 {[%emt 0:13:08]} 22. exf5 {[%emt 0:00:05]} Qd6 {[%emt 0:05:21]} 23. Be6 {[%emt 0:01:22]} Rad8 {[%emt 0:02:16]} 24. Qh3 {[%emt 0:01:39]} Nc6 {[%emt 0:06:40]} 25. Nc4 {[%emt 0:01:38]} Qe7 {[%emt 0:01:01]} 26. Bf4 {[%emt 0:01:51]} Ne5 {[%emt 0:00:06]} 27. Nxe5 {[%emt 0:02:16]} fxe5 {[%emt 0:00:05]} 28. Bg3 {[%emt 0:00:39]} c4 {[%emt 0:01:59]} 29. f6 {[%emt 0:01:00]} Bxf6 {[%emt 0:01:02]} 30. Bf5 {[%emt 0:00:12]} Rf7 {[%emt 0:01:20]} 31. Rae1 {[%emt 0:00:19]} Qc5+ {[%emt 0:01:14]} 32. Rf2 {[%emt 0:00:07]} Rd2 {[%emt 0:00:41]} 33. Kf1 {[%emt 0:00:45]} Rxf2+ {[%emt 0:01:04]} 34. Bxf2 {[%emt 0:00:02]} Qf8 {[%emt 0:00:20]} 35. Be6 {[%emt 0:01:23]} Rg7 {[%emt 0:00:23]} 36. Ke2 {[%emt 0:00:10]} b5 {[%emt 0:02:11]} 37. Rg1 {[%emt 0:00:40]} Rxg1 {[%emt 0:00:38]} 38. Bxg1 {[%emt 0:00:05]} a6 {[%emt 0:00:09]} 39. Bf5 {[%emt 0:00:58]} Qe7 {[%emt 0:00:33]} 40. Bc5 {[%emt 0:00:51]} Qf7 {[%emt 0:00:40]} 41. Be3 {[%emt 0:00:36]} Bd5 {[%emt 0:00:18]} 42. Qg4 {[%emt 0:00:21]} Bb7 {[%emt 0:00:59]} 43. Be6 {[%emt 0:00:29]} Qg7 {[%emt 0:00:04]} 44. Bh6 {[%emt 0:00:40]} Qg6 {[%emt 0:00:28]} 45. Qxg6 {[%emt 0:00:28]} hxg6 {[%emt 0:00:04]} 46. a4 {[%emt 0:00:34]} Bc6 {[%emt 0:00:47]} 47. Bc8 {[%emt 0:00:25]} a5 {[%emt 0:00:43]} 48. axb5 {[%emt 0:00:09]} Bxb5 {[%emt 0:00:04]} 49. Be6 {[%emt 0:00:40]} Be7 {[%emt 0:00:54]} 50. Kf3 {[%emt 0:00:45]} Kh7 {[%emt 0:00:12]} 51. Bc1 {[%emt 0:00:18]} Kg7 {[%emt 0:00:08]} 52. Ke4 {[%emt 0:00:36]} Kf6 {[%emt 0:00:04]} 53. Bd5 {[%emt 0:00:05]} Bc5 {[%emt 0:00:51]} 54. h4 {[%emt 0:00:31]} Bd6 {[%emt 0:00:37]} 1/2-1/2

[Event "9th RTU Open 2019"]
[Site "Riga"]
[Date "2019.08.06"]
[Round "3.29"]
[White "Sulskis, Sarunas"]
[Black "Li, Hong"]
[Result "1-0"]
[ECO "E81"]
[WhiteElo "2528"]
[BlackElo "2328"]
[Annotator "ChessBase"]
[PlyCount "131"]
[EventDate "2019.08.05"]
[EventType "swiss"]
[EventCountry "LAT"]
[SourceTitle "playchess.com"]
[Source "ChessBase"]
[SourceQuality "1"]
[TimeControl "5400+30"]

1. c4 {[%emt 0:01:53]} Nf6 {[%emt 0:00:00]} 2. Nc3 {[%emt 0:01:07]} g6 {[%emt 0:00:12]} 3. d4 {[%emt 0:01:11]} Bg7 {[%emt 0:00:08]} 4. e4 {[%emt 0:00:07]} d6 {[%emt 0:00:04]} 5. f3 {[%emt 0:04:12]} O-O {[%emt 0:03:38]} 6. Be3 {[%emt 0:00:08]} c6 {[%emt 0:00:33]} 7. Nge2 {[%emt 0:07:28]} a6 {[%emt 0:04:05]} 8. c5 {[%emt 0:03:50]} b5 {[%emt 0:12:41]} 9. cxb6 {[%emt 0:02:09]} Nbd7 {[%emt 0:01:12]} 10. Na4 {[%emt 0:04:35]} Nxb6 {[%emt 0:01:08]} 11. Nec3 {[%emt 0:01:59]} Nxa4 {[%emt 0:04:59]} 12. Nxa4 {[%emt 0:11:23]} Qa5+ {[%emt 0:03:30]} 13. Bd2 {[%emt 0:02:40]} Qc7 {[%emt 0:01:04]} 14. Be2 {[%emt 0:03:47]} Nd7 {[%emt 0:00:55]} 15. Bc3 {[%emt 0:09:22]} Qa7 {[%emt 0:03:26]} 16. Qd2 {[%emt 0:02:08]} Nb6 {[%emt 0:03:21]} 17. Nxb6 {[%emt 0:02:58]} Qxb6 {[%emt 0:00:05]} 18. O-O {[%emt 0:00:29]} a5 {[%emt 0:01:51]} 19. Kh1 {[%emt 0:00:26]} Be6 {[%emt 0:01:06]} 20. f4 {[%emt 0:03:49]} f5 {[%emt 0:06:44]} 21. d5 {[%emt 0:01:43]} Bxc3 {[%emt 0:02:55]} 22. bxc3 {[%emt 0:00:18]} cxd5 {[%emt 0:00:14]} 23. exd5 {[%emt 0:00:23]} Bf7 {[%emt 0:00:16]} 24. Rab1 {[%emt 0:05:56]} Qa7 {[%emt 0:02:42]} 25. Bb5 {[%emt 0:00:38]} Qc5 {[%emt 0:03:05]} 26. c4 {[%emt 0:00:57]} e6 {[%emt 0:03:54]} 27. dxe6 {[%emt 0:11:13]} Bxe6 {[%emt 0:00:05]} 28. Rbc1 {[%emt 0:01:19]} Ra7 {[%emt 0:02:57]} 29. a4 {[%emt 0:00:21]} Bf7 {[%emt 0:01:18]} 30. Rfd1 {[%emt 0:01:54]} Rd8 {[%emt 0:12:16]} 31. Qd4 {[%emt 0:00:48]} Raa8 {[%emt 0:01:28]} 32. Qf6 {[%emt 0:03:39]} d5 {[%emt 0:06:11]} 33. Bc6 {[%emt 0:02:12]} Rd6 {[%emt 0:01:44]} 34. cxd5 {[%emt 0:01:16]} Qxc1 {[%emt 0:02:29]} 35. Rxc1 {[%emt 0:00:09]} Rxf6 {[%emt 0:00:37]} 36. Bxa8 {[%emt 0:00:05]} Rb6 {[%emt 0:01:25]} 37. Bc6 {[%emt 0:01:30]} Rb4 {[%emt 0:04:28]} 38. Rd1 {[%emt 0:01:06]} Rb8 {[%emt 0:02:22]} 39. d6 {[%emt 0:00:59]} Rd8 {[%emt 0:00:28]} 40. Kg1 {[%emt 0:00:25]} Be6 {[%emt 0:00:09]} 41. Kf2 {[%emt 0:00:35]} Kf7 {[%emt 0:00:05]} 42. Ke3 {[%emt 0:01:21]} Kf6 {[%emt 0:01:12]} 43. Bb5 {[%emt 0:01:18]} h6 {[%emt 0:01:15]} 44. h4 {[%emt 0:00:47]} Bd7 {[%emt 0:01:14]} 45. Bxd7 {[%emt 0:01:38]} Rxd7 {[%emt 0:00:02]} 46. Rd5 {[%emt 0:00:20]} Ke6 {[%emt 0:00:11]} 47. Rxa5 {[%emt 0:00:15]} Rxd6 {[%emt 0:00:02]} 48. Re5+ {[%emt 0:00:27]} Kf6 {[%emt 0:00:22]} 49. a5 {[%emt 0:00:10]} g5 {[%emt 0:00:43]} 50. g3 {[%emt 0:00:46]} Rd1 {[%emt 0:01:38]} 51. h5 {[%emt 0:01:47]} Rg1 {[%emt 0:03:02]} 52. Kf2 {[%emt 0:00:46]} Ra1 {[%emt 0:00:03]} 53. Rb5 {[%emt 0:00:28]} Ra2+ {[%emt 0:00:07]} 54. Ke3 {[%emt 0:00:39]} Ra3+ {[%emt 0:00:26]} 55. Kd4 {[%emt 0:00:13]} Rxg3 {[%emt 0:00:42]} 56. Rb6+ {[%emt 0:00:39]} Kf7 {[%emt 0:01:58]} 57. a6 {[%emt 0:01:52]} Ra3 {[%emt 0:00:12]} 58. fxg5 {[%emt 0:00:34]} hxg5 {[%emt 0:00:55]} 59. h6 {[%emt 0:01:07]} Kg8 {[%emt 0:00:27]} 60. Ke5 {[%emt 0:00:39]} Kh7 {[%emt 0:03:01]} 61. Kxf5 {[%emt 0:00:22]} Ra5+ {[%emt 0:00:06]} 62. Kg4 {[%emt 0:00:18]} Ra4+ {[%emt 0:00:55]} 63. Kh5 {[%emt 0:00:29]} Ra3 64. Kxg5 Kh8 {[%emt 0:00:17]} 65. Kf5 {[%emt 0:00:25]} Kh7 {[%emt 0:00:05]} 66. Kg5 1-0

[Event "9th RTU Open 2019"]
[Site "Riga"]
[Date "2019.08.06"]
[Round "3.30"]
[White "Valner, Uku"]
[Black "Salomon, Johan"]
[Result "0-1"]
[ECO "B26"]
[WhiteElo "2317"]
[BlackElo "2514"]
[Annotator "ChessBase"]
[PlyCount "82"]
[EventDate "2019.08.05"]
[EventType "swiss"]
[EventCountry "LAT"]
[SourceTitle "playchess.com"]
[Source "ChessBase"]
[SourceQuality "1"]
[TimeControl "5400+30"]

1. e4 {[%emt 0:00:00]} c5 {[%emt 0:00:00]} 2. Nc3 {[%emt 0:00:00]} Nc6 {[%emt 0:00:15]} 3. g3 {[%emt 0:00:00]} g6 {[%emt 0:00:24]} 4. Bg2 {[%emt 0:00:00]} Bg7 {[%emt 0:00:04]} 5. d3 {[%emt 0:00:00]} d6 {[%emt 0:00:20]} 6. Be3 {[%emt 0:00:04]} Rb8 {[%emt 0:00:13]} 7. Qd2 {[%emt 0:01:47]} Nd4 {[%emt 0:00:21]} 8. Nd1 {[%emt 0:04:25]} b5 {[%emt 0:00:20]} 9. c3 {[%emt 0:00:36]} b4 {[%emt 0:00:05]} 10. cxd4 {[%emt 0:07:59]} cxd4 {[%emt 0:00:17]} 11. Bf4 {[%emt 0:00:04]} e5 {[%emt 0:00:53]} 12. Ne2 {[%emt 0:00:24]} exf4 {[%emt 0:00:33]} 13. Nxf4 {[%emt 0:00:05]} Bh6 {[%emt 0:14:12]} 14. Qc2 {[%emt 0:19:17]} Bxf4 {[%emt 0:01:07]} 15. gxf4 {[%emt 0:01:18]} Nf6 {[%emt 0:06:14]} 16. Bf3 {[%emt 0:09:43]} Nd7 {[%emt 0:08:07]} 17. Rg1 {[%emt 0:09:39]} Nc5 {[%emt 0:17:31]} 18. Rg5 {[%emt 0:17:22]} Ne6 {[%emt 0:00:00]} 19. Rd5 {[%emt 0:01:58]} Nxf4 {[%emt 0:00:00]} 20. Rxd4 {[%emt 0:05:09]} O-O {[%emt 0:00:00]} 21. e5 {[%emt 0:11:47]} Qg5 {[%emt 0:00:00]} 22. exd6 {[%emt 0:01:24]} Qe5+ {[%emt 0:00:00]} 23. Re4 {[%emt 0:00:12]} Qxd6 {[%emt 0:00:00]} 24. Qd2 {[%emt 0:07:23]} Nxd3+ {[%emt 0:00:22]} 25. Kf1 {[%emt 0:00:08]} Ba6 {[%emt 0:02:01]} 26. Kg1 {[%emt 0:00:37]} Rfe8 {[%emt 0:11:52]} 27. Rxe8+ {[%emt 0:01:30]} Rxe8 {[%emt 0:00:04]} 28. Ne3 {[%emt 0:00:21]} Qf4 {[%emt 0:01:35]} 29. Bd5 {[%emt 0:00:44]} Qg5+ {[%emt 0:04:39]} 30. Bg2 {[%emt 0:00:01]} Nf4 {[%emt 0:00:44]} 31. h4 {[%emt 0:00:52]} Qxh4 {[%emt 0:00:25]} 32. Qd7 {[%emt 0:00:32]} Re6 {[%emt 0:06:27]} 33. Qxa7 {[%emt 0:00:36]} Ne2+ {[%emt 0:00:31]} 34. Kf1 {[%emt 0:00:01]} Qh2 {[%emt 0:00:35]} 35. Ke1 {[%emt 0:00:47]} Nf4 {[%emt 0:01:56]} 36. Qa8+ {[%emt 0:00:42]} Kg7 {[%emt 0:00:08]} 37. Kd2 {[%emt 0:00:28]} Nxg2 {[%emt 0:02:17]} 38. Qxg2 {[%emt 0:00:34]} Qxg2 {[%emt 0:00:09]} 39. Nxg2 {[%emt 0:00:00]} Re2+ {[%emt 0:00:17]} 40. Kc1 {[%emt 0:00:12]} Rxf2 {[%emt 0:03:29]} 41. Ne1 {[%emt 0:01:18]} h5 {[%emt 0:01:20]} 0-1

[Event "9th RTU Open 2019"]
[Site "Riga"]
[Date "2019.08.06"]
[Round "3.31"]
[White "Sharma, Dinesh K."]
[Black "Stremavicius, Titas"]
[Result "1/2-1/2"]
[ECO "B07"]
[WhiteElo "2299"]
[BlackElo "2474"]
[Annotator "ChessBase"]
[PlyCount "55"]
[EventDate "2019.08.05"]
[EventType "swiss"]
[EventCountry "LAT"]
[SourceTitle "playchess.com"]
[Source "ChessBase"]
[SourceQuality "1"]
[TimeControl "5400+30"]

1. e4 {[%emt 0:00:00]} d6 {[%emt 0:00:00]} 2. d4 {[%emt 0:00:00]} Nf6 {[%emt 0:00:00]} 3. Nc3 {[%emt 0:00:00]} g6 {[%emt 0:00:00]} 4. Bc4 {[%emt 0:01:01]} Bg7 {[%emt 0:01:08]} 5. Qe2 {[%emt 0:00:19]} Nc6 {[%emt 0:00:59]} 6. e5 {[%emt 0:00:11]} Nxd4 {[%emt 0:00:41]} 7. exf6 {[%emt 0:01:09]} Nxe2 {[%emt 0:00:05]} 8. fxg7 {[%emt 0:00:23]} Rg8 {[%emt 0:00:02]} 9. Ngxe2 {[%emt 0:00:19]} Rxg7 {[%emt 0:10:19]} 10. Bh6 {[%emt 0:00:14]} Rg8 {[%emt 0:00:03]} 11. O-O-O {[%emt 0:00:32]} Be6 {[%emt 0:02:44]} 12. Bxe6 {[%emt 0:02:40]} fxe6 {[%emt 0:00:04]} 13. f4 {[%emt 0:01:24]} Qd7 {[%emt 0:23:37]} 14. Rhe1 {[%emt 0:04:49]} O-O-O {[%emt 0:00:19]} 15. Bg5 {[%emt 0:08:27]} c5 {[%emt 0:18:09]} 16. Ng1 {[%emt 0:02:12]} h6 {[%emt 0:03:28]} 17. Bxh6 {[%emt 0:05:02]} Rh8 {[%emt 0:00:08]} 18. Bg5 {[%emt 0:00:38]} Rxh2 {[%emt 0:00:09]} 19. Nf3 {[%emt 0:04:28]} Rxg2 {[%emt 0:03:08]} 20. Nh4 {[%emt 0:01:38]} Rh2 {[%emt 0:05:48]} 21. Nxg6 {[%emt 0:01:35]} Re8 {[%emt 0:00:26]} 22. Ne5 {[%emt 0:10:40]} Qc7 {[%emt 0:03:04]} 23. Ng4 {[%emt 0:01:46]} Rg2 {[%emt 0:00:15]} 24. Ne3 {[%emt 0:00:21]} Rf2 {[%emt 0:04:08]} 25. Ng4 {[%emt 0:01:49]} Rg2 {[%emt 0:00:17]} 26. Ne3 {[%emt 0:00:02]} Rf2 {[%emt 0:00:07]} 27. Ng4 {[%emt 0:13:31]} Rg2 {[%emt 0:00:08]} 28. Ne3 {[%emt 0:00:22]} 1/2-1/2